bitfinex/quotes_ETHUSD_20240811
["timestamp","ask_amount","ask_price","bid_price","bid_amount"]
[1723416346261,19.87,2569.8,2569.6,4.44165]
[1723416346462,0.08343548,2569.7,2569.6,5.27569832]
[1723416346667,19.87,2569.8,2569.6,1.38404832]
[1723416346978,0.08332363,2569.7,2569.6,0.55]
[1723416347283,19.87,2569.8,2569.4,7.71292]
[1723416347284,19.87,2569.8,2569.5,0.55]
[1723416347441,0.08341189,2569.7,2569.5,0.55]
[1723416347844,19.87,2569.8,2569.5,0.55]
[1723416348164,0.08402022,2569.6,2569.5,0.55]
[1723416348369,19.87,2569.8,2569.5,0.55]
[1723416348536,0.08402022,2569.6,2569.5,0.55]
[1723416348740,19.87,2569.8,2569.5,0.55]
[1723416348741,19.87,2569.8,2569.5,1.45411456]
[1723416348977,0.08410012,2569.6,2569.5,9.23771456]
[1723416349182,19.87,2570.1,2569.5,3.87881456]
[1723416349383,19.87,2570.1,2570.0,3.89105]
[1723416349552,0.0741523,2570.2,2570.0,3.89105]
[1723416349553,0.0741523,2570.2,2570.0,0.55]
[1723416349758,0.0741523,2570.2,2570.1,0.55]
[1723416350173,0.0741523,2570.2,2570.1,3.89089]
[1723416350479,0.0741523,2570.2,2570.1,0.55]
[1723416351192,0.0741523,2570.2,2569.9,0.55]
[1723416351682,3.89105,2570.0,2569.4,7.71289]
[1723416351909,20.259105,2569.9,2569.4,3.821]
[1723416352666,20.259105,2569.9,2569.0,7.71345]
[1723416352667,3.89154,2569.7,2569.0,7.71345]
[1723416352907,6.6957255,2569.7,2569.0,7.71345]
[1723416353717,6.6957255,2569.7,2569.0,3.821]
[1723416353718,19.87,2569.6,2569.0,3.821]
[1723416353872,19.87,2569.6,2569.0,3.8925]
[1723416354072,19.87,2569.6,2569.3,3.89209]
[1723416354297,19.87,2569.6,2569.3,3.89201]
[1723416354474,19.87,2569.6,2569.3,7.78402]
[1723416354807,19.87,2569.6,2569.3,3.89201]
[1723416355181,19.87,2569.6,2569.4,0.55]
[1723416355977,19.87,2569.6,2569.4,4.44185]
[1723416356170,19.87,2569.6,2569.4,4.44182]
[1723416356918,19.87,2569.6,2569.5,3.8918]
[1723416357113,19.87,2569.6,2569.5,0.55]
[1723416357808,19.87,2569.6,2569.5,4.4418]
[1723416358178,19.87,2570.0,2569.6,3.89163]
[1723416358377,19.87,2570.0,2569.7,0.55]
[1723416359001,2.4104,2569.9,2569.1,3.89231]
[1723416359196,4.3974,2569.9,2569.4,3.89188]
[1723416359432,2.4104,2569.9,2569.4,3.89186]
[1723416359652,6.30161,2569.9,2569.3,3.89199]
[1723416360010,2.4104,2569.9,2569.5,3.89177]
[1723416360449,2.4104,2569.9,2569.6,0.55]
[1723416360754,2.4104,2569.9,2569.0,10.71351]
[1723416360755,3.89144,2569.8,2569.0,10.71351]
[1723416360929,3.89169,2569.6,2569.0,10.71351]
[1723416361252,3.89144,2569.8,2569.2,3.89226]
[1723416361414,3.97318204,2569.5,2569.0,6.821]
[1723416361756,0.08135204,2569.5,2569.0,10.71347]
[1723416362046,5.75520554,2569.8,2569.0,10.71347]
[1723416362256,0.08116447,2569.4,2569.0,10.71345]
[1723416362455,19.87,2569.4,2569.1,0.55]
[1723416362641,0.08112779,2569.3,2569.1,4.44239]
[1723416362947,0.08112779,2569.3,2569.1,0.55]
[1723416364634,23.76226,2569.2,2568.6,3.821]
[1723416364943,23.76226,2569.2,2568.3,2.3998]
[1723416364944,19.95091057,2569.1,2568.8,3.89282]
[1723416365114,19.95091057,2569.1,2568.6,3.89885897]
[1723416365309,19.95091057,2569.1,2569.0,3.89256]
[1723416366124,19.95091057,2569.1,2569.0,0.55]
[1723416366546,19.95091057,2569.1,2568.9,0.55]
[1723416366909,3.89286,2568.9,2568.3,3.89353]
[1723416367112,23.76295,2568.8,2568.2,7.71472]
[1723416367260,3.89317,2568.6,2568.2,3.821]
[1723416367461,19.87,2568.7,2568.2,7.71476]
[1723416367694,19.87,2568.7,2568.2,3.821]
[1723416367867,0.08063839,2568.5,2568.2,3.821]
[1723416368190,0.08063672,2568.6,2568.2,3.821]
[1723416368577,0.08056332,2568.4,2568.3,0.55]
[1723416368801,3.89328,2568.6,2568.3,0.55]
[1723416369103,3.89378,2568.2,2567.4,3.821]
[1723416369313,19.87,2568.1,2567.4,3.821]
[1723416369617,3.8941,2568.0,2567.1,8.57979]
[1723416369911,2.4606,2567.8,2567.3,3.89505]
[1723416370059,2.4606,2567.8,2567.3,3.89504]
[1723416370266,0.07965243,2567.7,2567.3,3.89504]
[1723416370612,2.4606,2567.8,2567.3,3.89504]
[1723416370824,22.333,2568.1,2567.3,4.67408]
[1723416371032,22.333,2568.1,2567.6,3.89468]
[1723416371033,0.0795647,2567.7,2567.6,3.89468]
[1723416371318,0.07921905,2567.7,2567.6,11.68824886]
[1723416371520,0.07921905,2567.7,2567.6,16.27815175]
[1723416371693,19.87,2568.3,2567.6,15.38347175]
[1723416371894,19.87,2568.3,2568.2,3.89377]
[1723416372103,19.87,2568.3,2568.0,3.821]
[1723416372104,19.87,2568.7,2568.4,3.89346]
[1723416372284,19.87,2568.7,2568.5,0.55]
[1723416372711,19.87,2568.7,2568.5,4.44329]
[1723416372882,19.87,2568.7,2568.5,0.55]
[1723416373226,19.87,2568.7,2568.4,0.55]
[1723416373408,19.87,2568.7,2568.4,3.89332]
[1723416373577,19.87,2568.7,2568.5,0.55]
[1723416374005,19.87,2568.7,2568.4,3.89344]
[1723416374203,19.87,2568.7,2568.5,0.55]
[1723416375386,19.87,2568.7,2568.5,4.44329]
[1723416375584,19.87,2568.7,2568.5,9.170187]
[1723416375789,19.87,2568.7,2568.6,3.89317]
[1723416376017,19.87,2569.1,2569.0,3.89256]
[1723416376216,19.87,2569.4,2569.0,3.89256]
[1723416376423,19.87,2569.4,2569.0,3.89245]
[1723416376723,0.08021068,2569.3,2569.2,3.89226]
[1723416377097,0.08021068,2569.3,2569.2,8.33452]
[1723416378199,0.08021068,2569.3,2569.2,16.04778]
[1723416378389,19.87,2570.1,2569.2,16.04778]
[1723416378390,19.87,2570.1,2569.6,3.89158]
[1723416378595,19.87,2570.1,2569.7,0.55]
[1723416378791,0.07798574,2570.0,2569.7,0.55]
[1723416379187,0.07798574,2570.0,2569.9,7.7824]
[1723416379394,0.0741523,2570.2,2569.9,4.4412]
[1723416379701,0.07536102,2570.1,2570.0,0.55]
[1723416380229,0.07536102,2570.1,2570.0,8.40991791]
[1723416380428,0.07536102,2570.1,2570.0,9.2509097]
[1723416380787,0.07536102,2570.1,2570.0,0.55]
[1723416380992,0.07536102,2570.1,2569.9,0.55]
[1723416381311,0.07536102,2570.1,2569.8,3.89132]
[1723416381493,0.07536102,2570.1,2569.9,0.55]
[1723416381897,0.07536102,2570.1,2569.9,4.44109]
[1723416382148,0.07536102,2570.1,2569.9,0.55]
[1723416382491,0.07536102,2570.1,2569.8,0.55]
[1723416383015,0.07536102,2570.1,2569.8,3.89134]
[1723416383332,0.07536102,2570.1,2569.9,0.55]
[1723416383538,0.07536102,2570.1,2569.7,7.44141]
[1723416384033,0.07536102,2570.1,2569.8,3.89135]
[1723416384238,0.07536102,2570.1,2570.0,7.7821]
[1723416384549,0.07536102,2570.1,2570.0,16.04415]
[1723416384698,0.07536102,2570.1,2570.0,19.04415]
[1723416385035,0.07536102,2570.1,2570.0,23.3254]
[1723416385195,0.0741523,2570.2,2570.0,27.87682]
[1723416385397,2.3e-06,2570.2,2570.1,25.76425411]
[1723416385823,2.3e-06,2570.2,2570.1,21.40537]
[1723416386136,2.3e-06,2570.2,2570.1,17.58437]
[1723416386344,2.3e-06,2570.2,2570.1,20.762198]
[1723416386643,2.3e-06,2570.2,2570.1,14.119408]
[1723416386794,2.3e-06,2570.2,2570.1,13.569408]
[1723416387340,2.3e-06,2570.2,2570.1,17.460298]
[1723416387835,2.3e-06,2570.2,2570.1,13.569408]
[1723416388007,2.3e-06,2570.2,2570.1,18.010298]
[1723416388812,2.3e-06,2570.2,2570.1,14.119408]
[1723416389020,2.3e-06,2570.2,2570.1,18.010298]
[1723416389228,2.3e-06,2570.2,2570.1,14.119408]
[1723416389451,2.3e-06,2570.2,2570.1,9.678518]
[1723416389630,2.3e-06,2570.2,2570.1,10.78178]
[1723416390056,2.3e-06,2570.2,2570.1,14.67267]
[1723416390550,2.3e-06,2570.2,2570.1,17.03347]
[1723416390758,2.3e-06,2570.2,2570.1,21.31456]
[1723416390914,19.87,2571.3,2571.1,3.88933]
[1723416391119,19.87,2571.4,2571.2,0.55]
[1723416391758,19.87,2571.4,2571.3,3.88908]
[1723416391927,19.87,2571.4,2571.3,4.43908]
[1723416392632,22.011,2571.9,2571.4,3.88881]
[1723416392633,9.731,2571.9,2571.4,3.88881]
[1723416392816,0.05888006,2571.8,2571.5,0.55]
[1723416393330,0.05888006,2571.8,2571.6,3.96629163]
[1723416393547,0.05888006,2571.8,2571.7,0.55]
[1723416393733,22.331,2572.2,2571.7,0.55]
[1723416394066,22.331,2572.2,2571.7,4.43838]
[1723416394360,0.05891297,2572.1,2571.7,4.43838]
[1723416394528,0.05891297,2572.1,2571.7,0.55]
[1723416394744,0.05891297,2572.1,2571.7,3.88836]
[1723416394940,0.05891297,2572.1,2572.0,7.77604]
[1723416395317,19.87,2572.7,2572.0,4.43802]
[1723416395518,19.87,2572.7,2572.1,0.55]
[1723416395719,2.461,2572.6,2571.1,3.821]
[1723416396014,3.88864,2571.6,2571.0,3.88949]
[1723416396214,23.75845,2571.8,2571.1,3.88933]
[1723416396418,23.75845,2571.8,2571.1,3.821]
[1723416396660,3.8887,2571.6,2571.1,3.821]
[1723416396866,3.8887,2571.6,2570.7,2.3291]
[1723416396867,2.2558,2571.3,2570.7,7.71098]
[1723416397018,26.01489,2571.3,2570.7,7.71098]
[1723416397225,19.87,2571.3,2570.8,3.88978]
[1723416397523,19.87,2571.3,2571.0,3.88947]
[1723416397939,19.87,2571.3,2571.0,3.88944]
[1723416398258,19.87,2571.3,2571.1,3.88931]
[1723416398459,22.1258,2571.7,2571.1,3.88932]
[1723416398771,23.07838,2571.7,2571.3,3.88903]
[1723416398922,19.87,2571.7,2571.5,3.88875]
[1723416399255,19.87,2571.7,2571.6,3.88862]
[1723416399555,23.05498,2572.4,2571.7,3.88836]
[1723416399556,26.13387,2572.3,2571.7,3.88836]
[1723416399756,19.87,2572.2,2571.8,0.55]
[1723416400057,19.87,2572.2,2571.9,3.88816]
[1723416400266,19.87,2572.2,2571.8,0.55]
[1723416400434,19.87,2572.2,2571.9,3.88808]
[1723416400636,2.3763,2572.3,2571.9,3.88808]
[1723416400637,2.3763,2572.3,2572.0,4.43797]
[1723416400960,19.87,2572.5,2572.2,3.88762]
[1723416401123,19.87,2572.5,2572.3,0.55]
[1723416401324,19.87,2572.6,2572.3,0.55]
[1723416401859,19.87,2572.6,2572.2,0.55]
[1723416402089,19.87,2572.6,2571.6,3.8885]
[1723416402090,2.3763,2572.3,2571.6,3.8885]
[1723416402244,0.626386,2572.2,2571.8,3.88831]
[1723416402438,22.2463,2572.3,2571.9,4.43816]
[1723416402640,19.87,2572.3,2572.0,3.88793]
[1723416402840,19.87,2572.3,2572.1,4.43785]
[1723416403043,19.87,2572.3,2571.9,8.32623]
[1723416403225,19.87,2572.3,2571.9,4.43807]
[1723416403556,19.87,2572.3,2572.0,3.88793]
[1723416403763,25.64476831,2572.3,2571.9,0.55]
[1723416403983,25.64476831,2572.3,2571.8,0.55]
[1723416404127,6.26413,2572.2,2571.8,0.55]
[1723416404333,6.26412,2572.2,2571.6,0.55]
[1723416404598,3.88826,2571.9,2571.6,0.55]
[1723416404823,3.88826,2571.9,2571.3,3.889]
[1723416404824,3.88828,2571.9,2571.4,0.55]
[1723416405038,3.88817,2572.0,2571.3,7.77798]
[1723416405243,5.16274822,2572.0,2571.3,3.88898]
[1723416405449,2.3763,2571.8,2570.7,3.821]
[1723416405603,2.3763,2571.8,2570.9,3.88963]
[1723416405604,19.87,2571.7,2570.9,3.88963]
[1723416405804,25.98319,2571.7,2571.1,3.88935]
[1723416406214,29.87178,2571.7,2571.1,3.88935]
[1723416406537,25.98319,2571.7,2570.9,3.88963]
[1723416406699,3.88883,2571.5,2570.9,7.77923]
[1723416406898,2.30966994,2571.6,2571.0,3.88944]
[1723416407100,2.30966994,2571.6,2570.9,3.8896]
[1723416407101,0.05317833,2571.4,2570.9,3.8896]
[1723416407332,0.05321495,2571.5,2571.1,3.88927]
[1723416407542,0.05314171,2571.3,2571.2,0.55]
[1723416407698,19.87,2571.7,2571.3,3.88908]
[1723416407903,19.87,2571.7,2571.4,4.43882]
[1723416408099,19.87,2571.9,2571.5,0.55]
[1723416409812,19.87,2571.9,2571.6,3.88853]
[1723416410011,19.87,2571.9,2571.5,3.88878]
[1723416410205,19.87,2571.9,2571.6,0.55]
[1723416410739,19.87,2571.9,2571.4,4.43884]
[1723416410950,3.88844,2571.8,2571.4,0.55]
[1723416411103,3.88857,2571.7,2571.4,0.55]
[1723416411443,3.88863,2571.6,2571.2,3.55]
[1723416411600,3.88844,2571.8,2571.2,7.43914]
[1723416411601,7.77687,2571.8,2571.2,7.43914]
[1723416411973,7.27,2572.0,2571.4,3.88879]
[1723416411974,19.87,2571.7,2571.4,3.88879]
[1723416412146,19.87,2571.7,2571.5,0.55]
[1723416412351,19.87,2571.7,2571.4,3.88888]
[1723416412502,19.87,2571.7,2571.5,0.55]
[1723416412837,21.857,2571.7,2571.0,3.0]
[1723416413151,21.857,2571.7,2570.5,4.28043]
[1723416413152,21.857,2571.7,2571.3,3.88906]
[1723416413313,19.87,2571.7,2571.4,3.88887]
[1723416413647,19.87,2571.7,2571.5,4.43876]
[1723416413795,19.87,2571.7,2571.5,4.43869]
[1723416414256,19.87,2571.7,2571.5,4.43876]
[1723416415135,19.87,2571.7,2571.6,3.88862]
[1723416415300,19.87,2571.7,2571.6,4.43862]
[1723416415738,19.87,2571.7,2571.6,0.55]
[1723416415935,19.87,2571.7,2571.1,3.88934]
[1723416415936,25.74558,2571.7,2571.1,3.88934]
[1723416416140,3.88873,2571.6,2570.9,6.88956]
[1723416416346,3.88879,2571.5,2571.0,3.88949]
[1723416416730,23.75858,2571.7,2571.2,3.88921]
[1723416416731,19.87,2571.7,2571.2,3.88921]
[1723416416957,19.87,2571.7,2571.4,3.88892]
[1723416417318,6.19703,2571.6,2571.0,3.88944]
[1723416417522,8.803733,2571.6,2571.1,0.55]
[1723416417825,19.87,2571.5,2571.1,0.55]
[1723416418919,23.75888,2571.5,2571.1,0.55]
[1723416419122,19.87,2571.5,2571.0,0.55]
[1723416419358,19.87,2571.5,2571.0,4.43951]
[1723416419359,23.75881,2571.5,2571.0,4.43951]
[1723416419857,19.87,2571.5,2571.0,4.43945]
[1723416420058,19.87,2571.5,2571.2,3.88914]
[1723416420359,19.87,2571.5,2571.2,3.88921]
[1723416420855,19.87,2571.5,2571.3,3.88905]
[1723416421223,19.87,2571.5,2571.0,4.4394]
[1723416421425,0.05112126,2571.4,2571.2,3.88923]
[1723416421649,0.05112126,2571.4,2571.0,4.4394]
[1723416421965,0.05112126,2571.4,2571.1,3.88936]
[1723416422170,0.05112126,2571.4,2571.0,4.4394]
[1723416422171,0.05112126,2571.4,2571.2,4.43915]
[1723416422349,0.05112126,2571.4,2571.3,3.88908]
[1723416422524,0.05112126,2571.4,2571.3,4.43908]
[1723416422729,0.05112126,2571.4,2571.3,0.55]
[1723416423032,0.05112126,2571.4,2570.8,3.821]
[1723416423274,19.87,2571.3,2570.9,4.43968]
[1723416423475,19.87,2571.3,2571.2,3.88923]
[1723416423859,19.87,2571.3,2571.0,3.88939]
[1723416423860,19.92106603,2571.3,2571.0,3.88939]
[1723416424051,19.92106603,2571.3,2570.9,0.55]
[1723416424052,19.92106603,2571.3,2571.1,4.43938]
[1723416424790,19.92106603,2571.3,2571.1,0.55]
[1723416424948,19.92106603,2571.3,2571.1,3.88935]
[1723416425280,19.92106603,2571.3,2571.1,3.88928]
[1723416425489,19.92106603,2571.3,2571.2,7.77846]
[1723416425784,19.92106603,2571.3,2571.2,8.32846]
[1723416425952,19.92106603,2571.3,2571.2,4.43923]
[1723416426354,22.35616603,2571.3,2571.0,3.88943]
[1723416426549,19.87,2571.2,2570.8,7.71075]
[1723416426852,19.87,2571.2,2571.1,7.77876]
[1723416427184,19.92103306,2571.2,2571.1,8.32876]
[1723416427684,19.92103306,2571.2,2571.1,11.32876]
[1723416428754,0.05103306,2571.2,2571.1,15.21814]
[1723416428953,0.05103306,2571.2,2571.1,17.362479]
[1723416429261,19.87,2572.1,2571.7,7.77685]
[1723416429477,0.05133362,2572.0,2571.7,3.88839]
[1723416429697,0.05133362,2572.0,2571.5,3.88869]
[1723416429698,3.88803,2572.0,2571.5,3.88869]
[1723416429990,0.05129702,2571.9,2571.5,3.88869]
[1723416430200,22.3681,2571.8,2571.3,7.71]
[1723416430414,22.3681,2571.8,2571.2,3.88918]
[1723416430415,26.25652,2571.8,2571.2,3.88918]
[1723416430566,26.25652,2571.8,2571.3,4.43899]
[1723416430567,0.05122904,2571.7,2571.3,4.43899]
[1723416430777,0.05122904,2571.7,2571.6,3.88862]
[1723416430977,19.87,2571.8,2571.6,4.43862]
[1723416431186,19.87,2571.8,2571.7,3.88847]
[1723416431366,19.87,2571.8,2571.7,4.43847]
[1723416432276,19.87,2571.8,2571.3,3.821]
[1723416432591,22.245802,2571.8,2571.4,4.43881]
[1723416433112,22.245802,2571.8,2571.2,3.88919]
[1723416433113,6.18886,2571.7,2571.2,3.88919]
[1723416433613,2.3003,2571.7,2571.2,3.88912]
[1723416433769,4.40540854,2571.7,2571.2,3.88912]
[1723416434533,4.40540854,2571.7,2571.3,0.55]
[1723416434813,4.40540854,2571.7,2570.8,6.544575]
[1723416434814,19.87,2571.6,2570.5,3.821]
[1723416435101,19.87,2571.6,2570.9,3.88966]
[1723416435102,3.8888,2571.5,2570.9,3.88966]
[1723416435805,23.75871,2571.6,2570.8,3.88973]
[1723416435806,3.88894,2571.4,2570.8,3.88973]
[1723416436106,6.264834,2571.4,2570.7,3.88991]
[1723416436308,0.05124946,2571.3,2570.8,7.77958]
[1723416436604,0.05124946,2571.3,2570.9,0.55]
[1723416436783,0.05124946,2571.3,2570.9,4.43966]
[1723416436980,0.05124946,2571.3,2571.0,3.88952]
[1723416437168,0.05124946,2571.3,2571.1,4.43928]
[1723416437375,19.87,2571.5,2571.2,3.88919]
[1723416437570,2.3003,2571.7,2571.3,4.43907]
[1723416437880,6.18879,2571.7,2571.3,0.55]
[1723416438080,3.88901,2571.4,2570.8,6.88975]
[1723416438284,3.88924,2571.2,2570.9,0.55]
[1723416438481,3.88924,2571.2,2570.8,0.55]
[1723416438482,2.712924,2571.1,2570.8,0.55]
[1723416438719,2.324,2571.1,2570.8,3.88978]
[1723416438872,2.324,2571.4,2571.1,3.88929]
[1723416439075,19.87,2571.6,2570.7,0.55]
[1723416439273,19.87,2571.6,2571.2,3.88915]
[1723416439469,19.87,2571.6,2571.3,0.55]
[1723416439888,19.87,2571.6,2571.3,4.43905]
[1723416440069,19.87,2571.8,2571.5,3.88866]
[1723416440510,19.87,2571.8,2571.6,3.88857]
[1723416440710,19.87,2571.8,2571.7,3.88847]
[1723416440914,7.27,2571.9,2571.7,0.55]
[1723416440915,19.87,2571.9,2571.7,0.55]
[1723416441117,19.87,2571.9,2571.7,3.88838]
[1723416441417,19.87,2571.9,2571.8,0.55]
[1723416441774,19.87,2571.9,2571.6,3.88861]
[1723416441775,19.87,2571.9,2571.7,0.55]
[1723416442222,19.87,2571.9,2571.1,6.88931]
[1723416442223,6.34274,2571.8,2571.1,6.88931]
[1723416442517,23.75857,2571.7,2571.1,6.8893]
[1723416442716,19.87,2571.7,2571.2,3.88915]
[1723416442876,19.87,2571.7,2571.1,3.0]
[1723416443071,19.87,2571.7,2571.4,3.88884]
[1723416443311,19.87,2571.7,2571.1,4.071044]
[1723416443312,19.87,2571.7,2571.2,3.96688733]
[1723416443531,19.87,2571.7,2571.6,3.88862]
[1723416443811,19.87,2571.7,2571.6,4.43862]
[1723416444011,19.87,2571.7,2571.6,11.32724]
[1723416444174,19.87,2571.7,2571.6,12.848849]
[1723416445387,0.04968154,2571.7,2571.6,12.848849]
[1723416445725,19.87,2572.2,2571.9,3.88804]
[1723416446016,7.77523,2572.3,2571.7,3.88841]
[1723416446174,6.33921,2572.1,2571.6,3.55]
[1723416446874,3.88822,2571.9,2571.6,0.55]
[1723416447102,3.88822,2571.9,2571.4,0.55]
[1723416447311,19.87,2571.8,2571.4,0.55]
[1723416447514,19.87,2571.8,2570.7,2.662]
[1723416447515,2.4513,2571.6,2570.7,2.662]
[1723416447820,19.87,2571.5,2570.7,2.2718]
[1723416448116,19.87,2571.5,2571.1,3.88937]
[1723416448525,19.87,2571.5,2570.7,3.88993]
[1723416448695,19.87,2571.5,2570.5,3.821]
[1723416448696,2.4513,2571.1,2570.5,7.71121]
[1723416449043,2.4513,2571.1,2570.7,3.88989]
[1723416449377,2.4513,2571.1,2570.5,11.6014]
[1723416449583,3.8897,2570.9,2570.3,3.89049]
[1723416449806,19.87,2570.8,2570.3,3.89048]
[1723416450287,19.87,2570.8,2570.1,7.71183]
[1723416450288,23.75994,2570.8,2570.2,3.89064]
[1723416450811,19.87,2570.8,2570.2,3.89064]
[1723416451022,19.87,2570.8,2570.4,3.89038]
[1723416451328,0.04883185,2570.7,2570.4,0.778102]
[1723416451617,0.04883185,2570.7,2570.6,3.89009]
[1723416451819,19.87,2570.8,2570.6,3.89009]
[1723416452030,0.04874615,2570.7,2570.6,3.89009]
[1723416452328,19.87,2570.8,2570.6,3.89009]
[1723416452482,0.04843522,2570.7,2570.5,3.89028]
[1723416452688,19.87,2570.8,2570.5,3.8902]
[1723416452889,19.87,2570.8,2570.7,3.88999]
[1723416453085,19.87,2570.8,2570.7,9.107999]
[1723416453333,19.87,2571.2,2571.0,3.88951]
[1723416453539,19.87,2571.2,2571.1,3.88938]
[1723416453706,19.87,2571.2,2570.7,1.328019]
[1723416453707,19.87,2571.2,2570.9,3.88955]
[1723416454040,19.87,2571.2,2570.8,3.88972]
[1723416454201,19.87,2571.2,2570.9,0.55]
[1723416454644,3.8894,2571.1,2570.5,3.89021]
[1723416454950,3.8894,2571.1,2570.4,3.0]
[1723416454951,3.88977,2570.9,2570.4,3.0]
[1723416455119,19.87,2570.8,2570.3,3.89051]
[1723416455304,19.87,2570.8,2570.3,3.8905]
[1723416455503,23.75993,2570.8,2570.1,7.71178]
[1723416455808,23.75993,2570.8,2570.2,3.89065]
[1723416456042,21.97497054,2570.8,2570.3,3.89057]
[1723416456351,19.87,2570.8,2570.6,3.89011]
[1723416456643,19.87,2570.8,2570.5,3.89028]
[1723416456821,19.87,2570.8,2570.6,0.55]
[1723416457544,19.87,2570.8,2570.4,3.89042]
[1723416457708,2.2547,2570.7,2570.2,3.89066]
[1723416458049,6.14472,2570.7,2570.1,3.0]
[1723416458223,3.89023,2570.6,2570.0,3.89095]
[1723416458419,10.27,2571.4,2570.7,3.88989]
[1723416458420,22.1247,2571.3,2570.7,3.88989]
[1723416458622,22.1247,2571.3,2570.8,0.388989]
[1723416458835,22.1247,2571.3,2570.7,3.88987]
[1723416459127,22.1247,2571.3,2570.7,3.88998]
[1723416459128,3.88923,2571.2,2570.7,3.88998]
[1723416459713,3.88939,2571.1,2570.5,7.78039]
[1723416459916,3.88939,2571.1,2570.4,3.0]
[1723416459917,26.01388,2571.3,2570.7,3.88988]
[1723416460218,22.1247,2571.3,2570.6,1.239024]
[1723416460403,26.01387,2571.3,2570.7,3.8899]
[1723416460606,3.88954,2571.0,2570.5,3.8902]
[1723416460847,3.88925,2571.2,2570.6,7.44003]
[1723416461048,22.1247,2571.3,2570.6,3.55]
[1723416461233,22.1247,2571.3,2570.7,3.88991]
[1723416461528,22.1247,2571.3,2570.8,0.55]
[1723416461748,22.1247,2571.3,2570.8,4.4398]
[1723416461965,22.1247,2571.3,2570.5,3.89015]
[1723416462269,19.87,2571.2,2570.6,3.939015]
[1723416462617,3.88949,2571.1,2570.6,4.829125]
[1723416462866,3.88949,2571.1,2570.6,0.939015]
[1723416463223,3.88949,2571.1,2570.6,0.55]
[1723416463521,3.88962,2571.0,2570.6,0.55]
[1723416464225,23.75932,2571.2,2570.6,0.55]
[1723416464603,3.88939,2571.1,2570.6,0.55]
[1723416464937,23.75932,2571.2,2570.6,0.55]
[1723416465137,3.88939,2571.1,2570.6,0.55]
[1723416465461,23.75932,2571.2,2570.7,3.88989]
[1723416465760,23.75927,2571.2,2570.7,3.88989]
[1723416465956,23.75927,2571.2,2570.6,0.55]
[1723416466162,3.88939,2571.1,2570.6,0.55]
[1723416466365,0.04497353,2571.1,2570.6,1.383035]
[1723416466526,0.04497353,2571.1,2570.7,3.8899]
[1723416467166,0.04497353,2571.1,2570.8,3.88983]
[1723416467729,0.04497353,2571.1,2570.7,3.8899]
[1723416468165,0.04497353,2571.1,2570.8,0.55]
[1723416468373,19.87,2571.0,2570.8,0.55]
[1723416468752,0.04510687,2570.9,2570.8,0.55]
[1723416468938,0.04510687,2570.9,2570.8,4.43983]
[1723416469783,0.04510687,2570.9,2570.8,9.162631]
[1723416470953,6.87e-06,2570.9,2570.8,19.231491]
[1723416471284,19.87,2571.9,2571.5,3.88869]
[1723416471479,19.87,2571.8,2571.6,0.55]
[1723416471656,19.87,2571.8,2571.6,4.43859]
[1723416471978,7.27,2572.2,2571.6,1.382747]
[1723416471979,19.87,2572.0,2571.6,1.382747]
[1723416472175,19.87,2572.0,2571.9,3.88817]
[1723416472392,19.87,2572.0,2571.9,4.43817]
[1723416472771,19.87,2572.0,2571.6,3.88862]
[1723416472942,19.87,2572.0,2571.7,0.55]
[1723416473452,3.88833,2571.8,2571.1,3.0]
[1723416473658,22.972785,2572.0,2570.1,2.856]
[1723416473659,3.889,2571.4,2570.7,2.856]
[1723416473966,2.2685,2571.6,2571.1,3.88936]
[1723416473967,19.87,2571.3,2571.1,3.88936]
[1723416474179,19.87,2571.3,2570.9,3.88956]
[1723416474883,19.87,2571.3,2570.7,3.88991]
[1723416474884,2.4203,2571.0,2570.7,3.88997]
[1723416475383,2.4203,2571.0,2570.7,3.88989]
[1723416475755,19.87,2571.2,2570.1,2.2503]
[1723416475756,19.87,2571.2,2571.0,3.88953]
[1723416475960,3.79842554,2571.5,2571.0,7.77897]
[1723416476160,3.79842554,2571.5,2571.2,3.88922]
[1723416476351,2.4203,2571.5,2571.0,7.77889]
[1723416476552,2.4203,2571.5,2571.1,0.55]
[1723416476953,6.30914,2571.5,2571.1,0.55]
[1723416477178,19.87,2571.4,2570.8,3.88975]
[1723416477355,19.87,2571.4,2570.9,0.55]
[1723416477556,2.617914,2571.3,2570.9,0.55]
[1723416477994,19.87,2571.4,2570.9,4.43957]
[1723416478284,19.87,2571.4,2570.9,0.55]
[1723416478687,19.87,2571.4,2570.6,3.89007]
[1723416478688,3.93153704,2571.3,2570.7,0.55]
[1723416479061,3.93153704,2571.3,2570.7,4.43986]
[1723416479265,10.44291074,2571.3,2570.7,4.43986]
[1723416479478,2.66462074,2571.3,2570.8,3.88981]
[1723416479690,2.66462074,2571.3,2570.9,0.55]
[1723416480187,19.87,2571.2,2570.9,0.55]
[1723416480372,21.77093336,2571.2,2570.9,0.55]
[1723416480572,3.88947,2571.1,2570.9,0.55]
[1723416480785,3.9316399,2571.1,2570.9,0.55]
[1723416480955,3.9316399,2571.1,2570.7,0.55]